[Event "Titled Tuesday Blitz January 03 Early 2023"]
[White "Goroshkov, Maksym"]
[Black "Harsha Bharathakoti"]
[WhiteFideId "14142716"]
[BlackFideId "5078776"]
[WhiteElo "2287"]
[BlackElo "2602"]
[Result "1-0"]
[Round "06"]
[TimeControl "180+2"]
[Date "2023.01.03"]
[WhiteClock "0:00:40"]
[BlackClock "0:00:37"]

1. e4 {[%clk 0:02:59]}  c6 {[%clk 0:02:58]} 2. d4 {[%clk 0:02:59]}  d5 {[%clk 0:02:58]} 3. exd5 {[%clk 0:03:00]}  cxd5 {[%clk 0:02:59]} 4. c4 {[%clk 0:03:01]}  Nf6 {[%clk 0:02:58]} 5. Nc3 {[%clk 0:03:01]}  Nc6 {[%clk 0:02:59]} 6. Nf3 {[%clk 0:03:02]}  Be6 {[%clk 0:02:59]} 7. cxd5 {[%clk 0:03:02]}  Nxd5 {[%clk 0:02:59]} 8. Bb5 {[%clk 0:03:02]}  a6 {[%clk 0:02:06]} 9. Bxc6+ {[%clk 0:02:56]}  bxc6 {[%clk 0:02:07]} 10. O-O {[%clk 0:02:57]}  g6 {[%clk 0:02:01]} 11. Ne5 {[%clk 0:02:50]}  Bg7 {[%clk 0:01:54]} 12. Nxc6 {[%clk 0:02:41]}  Qc7 {[%clk 0:01:47]} 13. Nxd5 {[%clk 0:02:30]}  Bxd5 {[%clk 0:01:34]} 14. Nb4 {[%clk 0:02:29]}  Bb7 {[%clk 0:01:34]} 15. Qa4+ {[%clk 0:02:26]}  Qd7 {[%clk 0:01:34]} 16. Qxd7+ {[%clk 0:02:25]}  Kxd7 {[%clk 0:01:35]} 17. Be3 {[%clk 0:02:25]}  Rhc8 {[%clk 0:01:36]} 18. Rac1 {[%clk 0:02:24]}  a5 {[%clk 0:01:28]} 19. Nd3 {[%clk 0:02:23]}  Bd5 {[%clk 0:01:29]} 20. Nc5+ {[%clk 0:02:21]}  Ke8 {[%clk 0:01:29]} 21. b3 {[%clk 0:02:17]}  e6 {[%clk 0:01:28]} 22. Na4 {[%clk 0:02:17]}  Rab8 {[%clk 0:01:22]} 23. f3 {[%clk 0:02:00]}  Bf8 {[%clk 0:01:07]} 24. Nc5 {[%clk 0:01:53]}  f6 {[%clk 0:00:57]} 25. Rc3 {[%clk 0:01:48]}  Bxc5 {[%clk 0:00:56]} 26. Rxc5 {[%clk 0:01:45]}  Rxc5 {[%clk 0:00:55]} 27. dxc5 {[%clk 0:01:46]}  Kd7 {[%clk 0:00:50]} 28. Bd2 {[%clk 0:01:34]}  a4 {[%clk 0:00:48]} 29. bxa4 {[%clk 0:01:27]}  Rb2 {[%clk 0:00:46]} 30. Bc3 {[%clk 0:01:26]}  Rxa2 {[%clk 0:00:47]} 31. Bxf6 {[%clk 0:01:27]}  Rxa4 {[%clk 0:00:48]} 32. Rc1 {[%clk 0:01:25]}  Rc4 {[%clk 0:00:47]} 33. Rxc4 {[%clk 0:01:24]}  Bxc4 {[%clk 0:00:48]} 34. Kf2 {[%clk 0:01:25]}  Kc6 {[%clk 0:00:49]} 35. Be7 {[%clk 0:01:25]}  Bd3 {[%clk 0:00:44]} 36. f4 {[%clk 0:01:24]}  Be4 {[%clk 0:00:44]} 37. g3 {[%clk 0:01:23]}  h5 {[%clk 0:00:45]} 38. Ke3 {[%clk 0:01:23]}  Bf5 {[%clk 0:00:45]} 39. Kd4 {[%clk 0:01:23]}  Kd7 {[%clk 0:00:46]} 40. Bd6 {[%clk 0:01:23]}  Kc6 {[%clk 0:00:47]} 41. Ke5 {[%clk 0:01:23]}  Kd7 {[%clk 0:00:47]} 42. Kf6 {[%clk 0:01:23]}  Kc6 {[%clk 0:00:48]} 43. h3 {[%clk 0:01:21]}  Bxh3 {[%clk 0:00:48]} 44. Kxg6 {[%clk 0:01:21]}  Bg4 {[%clk 0:00:49]} 45. Kg5 {[%clk 0:01:19]}  Kd7 {[%clk 0:00:49]} 46. Be5 {[%clk 0:01:19]}  Kc6 {[%clk 0:00:50]} 47. Bd4 {[%clk 0:01:20]}  Kd5 {[%clk 0:00:51]} 48. Bg1 {[%clk 0:01:20]}  Kc6 {[%clk 0:00:51]} 49. Kf6 {[%clk 0:01:20]}  Kd7 {[%clk 0:00:52]} 50. Ke5 {[%clk 0:01:20]}  Kc6 {[%clk 0:00:53]} 51. Bf2 {[%clk 0:01:19]}  Bf5 {[%clk 0:00:54]} 52. Kf6 {[%clk 0:01:19]}  Bg4 {[%clk 0:00:54]} 53. Kg6 {[%clk 0:01:20]}  Kd7 {[%clk 0:00:55]} 54. Kf7 {[%clk 0:01:20]}  Kc6 {[%clk 0:00:56]} 55. Ke8 {[%clk 0:01:20]}  Bf5 {[%clk 0:00:56]} 56. Kd8 {[%clk 0:01:19]}  Bg4 {[%clk 0:00:57]} 57. Ke7 {[%clk 0:01:20]}  Bf5 {[%clk 0:00:58]} 58. Be3 {[%clk 0:01:18]}  Bg4 {[%clk 0:00:59]} 59. Kf6 {[%clk 0:01:17]}  Bf5 {[%clk 0:01:00]} 60. Kg7 {[%clk 0:01:17]}  Bg4 {[%clk 0:01:01]} 61. Kg6 {[%clk 0:01:17]}  Kd7 {[%clk 0:01:02]} 62. Kg5 {[%clk 0:01:15]}  Kc6 {[%clk 0:01:01]} 63. Kf6 {[%clk 0:01:15]}  Kd7 {[%clk 0:01:01]} 64. Ke5 {[%clk 0:01:16]}  Bf5 {[%clk 0:01:02]} 65. Kd4 {[%clk 0:01:15]}  Kc6 {[%clk 0:01:03]} 66. Kc4 {[%clk 0:01:15]}  Bg4 {[%clk 0:01:04]} 67. Kb4 {[%clk 0:01:15]}  Bf5 {[%clk 0:01:04]} 68. Ka5 {[%clk 0:01:15]}  Bg4 {[%clk 0:01:05]} 69. Ka6 {[%clk 0:01:15]}  Bf5 {[%clk 0:01:06]} 70. Ka5 {[%clk 0:01:15]}  Bg4 {[%clk 0:01:07]} 71. Kb4 {[%clk 0:01:16]}  Be2 {[%clk 0:01:07]} 72. Kc3 {[%clk 0:01:15]}  Bg4 {[%clk 0:01:07]} 73. Kd4 {[%clk 0:01:15]}  Bf5 {[%clk 0:01:08]} 74. Ke5 {[%clk 0:01:14]}  Bg4 {[%clk 0:01:09]} 75. Bd4 {[%clk 0:01:13]}  Bf5 {[%clk 0:01:09]} 76. Kf6 {[%clk 0:01:13]}  Bg4 {[%clk 0:01:10]} 77. Kg5 {[%clk 0:01:11]}  Kd5 {[%clk 0:01:10]} 78. Bf2 {[%clk 0:01:10]}  Kc6 {[%clk 0:01:11]} 79. Bg1 {[%clk 0:01:09]}  Kd7 {[%clk 0:01:11]} 80. Kh6 {[%clk 0:01:09]}  Ke7 {[%clk 0:01:12]} 81. Kg7 {[%clk 0:01:09]}  Kd7 {[%clk 0:01:12]} 82. Kf6 {[%clk 0:01:09]}  Bf5 {[%clk 0:01:12]} 83. Kf7 {[%clk 0:01:07]}  Bg4 {[%clk 0:01:13]} 84. Kg6 {[%clk 0:01:07]}  Bf5+ {[%clk 0:01:14]} 85. Kxh5 {[%clk 0:01:07]}  Be4 {[%clk 0:01:13]} 86. g4 {[%clk 0:01:05]}  Bf3 {[%clk 0:01:13]} 87. Kg5 {[%clk 0:01:02]}  Ke7 {[%clk 0:01:14]} 88. Bd4 {[%clk 0:01:01]}  Kf7 {[%clk 0:01:14]} 89. Be5 {[%clk 0:01:01]}  Ke7 {[%clk 0:01:12]} 90. Bd6+ {[%clk 0:00:57]}  Kf7 {[%clk 0:01:12]} 91. f5 {[%clk 0:00:55]}  exf5 {[%clk 0:01:11]} 92. Kxf5 {[%clk 0:00:56]}  Bc6 {[%clk 0:01:04]} 93. g5 {[%clk 0:00:54]}  Bd7+ {[%clk 0:00:56]} 94. Ke5 {[%clk 0:00:54]}  Bh3 {[%clk 0:00:40]} 95. c6 {[%clk 0:00:50]}  Bg2 {[%clk 0:00:39]} 96. c7 {[%clk 0:00:50]}  Bh3 {[%clk 0:00:40]} 97. Kd5 {[%clk 0:00:48]}  Ke8 {[%clk 0:00:38]} 98. Kc6 {[%clk 0:00:46]}  Bg2+ {[%clk 0:00:36]} 99. Kb6 {[%clk 0:00:45]}  Kd7 {[%clk 0:00:37]} 100. g6 {[%clk 0:00:43]}  Be4 {[%clk 0:00:37]} 101. g7 {[%clk 0:00:43]}  Bh7 {[%clk 0:00:37]} 102. Kb7 {[%clk 0:00:40]} 1-0


[Site "https://www.chess.com"]

[Event "Titled Tuesday Blitz January 03 Early 2023"]
[White "Kobalia, Mikhail"]
[Black "Atanasov, Anthony"]
[WhiteFideId "4119150"]
[BlackFideId "2623897"]
[WhiteElo "2578"]
[BlackElo "2368"]
[Result "0-1"]
[Round "06"]
[TimeControl "180+2"]
[Date "2023.01.03"]
[WhiteClock "0:00:34"]
[BlackClock "0:00:19"]

1. e4 {[%clk 0:03:00]}  e5 {[%clk 0:02:57]} 2. Nf3 {[%clk 0:03:00]}  Nf6 {[%clk 0:02:57]} 3. Nc3 {[%clk 0:02:59]}  Nc6 {[%clk 0:02:57]} 4. a4 {[%clk 0:02:58]}  a6 {[%clk 0:02:49]} 5. Bc4 {[%clk 0:02:38]}  Nxe4 {[%clk 0:02:48]} 6. Nxe4 {[%clk 0:02:36]}  d5 {[%clk 0:02:48]} 7. Bd3 {[%clk 0:02:36]}  dxe4 {[%clk 0:02:46]} 8. Bxe4 {[%clk 0:02:37]}  Bd6 {[%clk 0:02:45]} 9. O-O {[%clk 0:02:35]}  O-O {[%clk 0:02:45]} 10. Re1 {[%clk 0:02:35]}  Bg4 {[%clk 0:02:31]} 11. h3 {[%clk 0:02:34]}  Bh5 {[%clk 0:02:30]} 12. d4 {[%clk 0:01:44]}  Nxd4 {[%clk 0:02:23]} 13. g4 {[%clk 0:01:43]}  Bg6 {[%clk 0:02:16]} 14. Bxg6 {[%clk 0:01:37]}  fxg6 {[%clk 0:02:06]} 15. Ng5 {[%clk 0:01:17]}  e4 {[%clk 0:01:43]} 16. Rxe4 {[%clk 0:01:09]}  Nf3+ {[%clk 0:01:42]} 17. Qxf3 {[%clk 0:01:01]}  Rxf3 {[%clk 0:01:40]} 18. Nxf3 {[%clk 0:01:02]}  Qf6 {[%clk 0:01:38]} 19. Re3 {[%clk 0:00:52]}  Bc5 {[%clk 0:01:33]} 20. Rc3 {[%clk 0:00:47]}  Rf8 {[%clk 0:01:06]} 21. Bg5 {[%clk 0:00:44]}  Qb6 {[%clk 0:00:39]} 22. Rb3 {[%clk 0:00:40]}  Qxb3 {[%clk 0:00:19]} 23. cxb3 {[%clk 0:00:39]}  Rxf3 {[%clk 0:00:19]} 24. Rc1 {[%clk 0:00:36]}  Bb6 {[%clk 0:00:19]} 25. Be3 {[%clk 0:00:33]}  Rxe3 {[%clk 0:00:18]} 26. fxe3 {[%clk 0:00:34]}  Bxe3+ {[%clk 0:00:19]} 0-1


[Site "https://www.chess.com"]

[Event "Titled Tuesday Blitz January 03 Early 2023"]
[White "Nenezic, Marko"]
[Black "Aldokhin, Ivan"]
[WhiteFideId "912123"]
[BlackFideId "24115720"]
[WhiteElo "2514"]
[BlackElo "2413"]
[Result "0-1"]
[Round "06"]
[TimeControl "180+2"]
[Date "2023.01.03"]
[WhiteClock "0:00:34"]
[BlackClock "0:01:50"]

1. Nf3 {[%clk 0:02:17]}  Nf6 {[%clk 0:02:59]} 2. g3 {[%clk 0:02:17]}  g6 {[%clk 0:03:00]} 3. Bg2 {[%clk 0:02:18]}  Bg7 {[%clk 0:03:01]} 4. O-O {[%clk 0:02:19]}  O-O {[%clk 0:03:01]} 5. d3 {[%clk 0:02:20]}  d5 {[%clk 0:02:59]} 6. Nbd2 {[%clk 0:02:20]}  Nc6 {[%clk 0:03:00]} 7. e4 {[%clk 0:02:20]}  dxe4 {[%clk 0:03:00]} 8. dxe4 {[%clk 0:02:20]}  a5 {[%clk 0:03:00]} 9. Qe2 {[%clk 0:02:19]}  Nd7 {[%clk 0:02:59]} 10. Rd1 {[%clk 0:02:16]}  b6 {[%clk 0:02:58]} 11. e5 {[%clk 0:02:12]}  Ba6 {[%clk 0:02:54]} 12. c4 {[%clk 0:01:54]}  Nc5 {[%clk 0:02:47]} 13. Nb3 {[%clk 0:01:23]}  Bxc4 {[%clk 0:02:18]} 14. Rxd8 {[%clk 0:01:23]}  Bxe2 {[%clk 0:02:17]} 15. Rxa8 {[%clk 0:01:22]}  Rxa8 {[%clk 0:02:17]} 16. Nfd4 {[%clk 0:01:20]}  Nxd4 {[%clk 0:02:10]} 17. Nxd4 {[%clk 0:01:05]}  Rd8 {[%clk 0:02:08]} 18. Nxe2 {[%clk 0:01:05]}  Rd1+ {[%clk 0:02:08]} 19. Bf1 {[%clk 0:01:06]}  Bxe5 {[%clk 0:02:04]} 20. Nc3 {[%clk 0:00:55]}  Bxc3 {[%clk 0:01:59]} 21. bxc3 {[%clk 0:00:55]}  Nd3 {[%clk 0:01:59]} 22. Kg2 {[%clk 0:00:46]}  Rxc1 {[%clk 0:01:51]} 23. Rxc1 {[%clk 0:00:40]}  Nxc1 {[%clk 0:01:52]} 24. Bc4 {[%clk 0:00:40]}  b5 {[%clk 0:01:50]} 25. Bxb5 {[%clk 0:00:35]}  Nxa2 {[%clk 0:01:50]} 26. c4 {[%clk 0:00:34]}  Nc3 {[%clk 0:01:50]} 0-1


[Site "https://www.chess.com"]

[Event "Titled Tuesday Blitz January 03 Early 2023"]
[White "Tanenbaum, Zachary"]
[Black "Dev, Shah"]
[WhiteFideId "2060850"]
[BlackFideId "35019058"]
[WhiteElo "2261"]
[BlackElo "2334"]
[Result "1-0"]
[Round "06"]
[TimeControl "180+2"]
[Date "2023.01.03"]
[WhiteClock "0:00:50"]
[BlackClock "0:00:02"]

1. e4 {[%clk 0:03:00]}  e5 {[%clk 0:02:37]} 2. Nf3 {[%clk 0:03:00]}  Nc6 {[%clk 0:02:36]} 3. Bc4 {[%clk 0:03:01]}  Bc5 {[%clk 0:02:36]} 4. c3 {[%clk 0:03:01]}  Nf6 {[%clk 0:02:36]} 5. d4 {[%clk 0:03:01]}  exd4 {[%clk 0:02:32]} 6. b4 {[%clk 0:03:02]}  Be7 {[%clk 0:02:32]} 7. b5 {[%clk 0:03:01]}  Na5 {[%clk 0:02:30]} 8. Bd3 {[%clk 0:03:00]}  d5 {[%clk 0:02:26]} 9. e5 {[%clk 0:02:59]}  Ne4 {[%clk 0:02:26]} 10. cxd4 {[%clk 0:02:59]}  O-O {[%clk 0:02:19]} 11. O-O {[%clk 0:02:58]}  f6 {[%clk 0:02:18]} 12. Qe1 {[%clk 0:02:39]}  b6 {[%clk 0:02:09]} 13. Bxe4 {[%clk 0:02:38]}  dxe4 {[%clk 0:02:09]} 14. Qxe4 {[%clk 0:02:39]}  Bb7 {[%clk 0:02:09]} 15. Qg4 {[%clk 0:02:38]}  Bxf3 {[%clk 0:02:08]} 16. gxf3 {[%clk 0:02:33]}  fxe5 {[%clk 0:01:49]} 17. dxe5 {[%clk 0:02:31]}  Qd5 {[%clk 0:01:49]} 18. Qe4 {[%clk 0:01:58]}  Qxb5 {[%clk 0:01:37]} 19. Nc3 {[%clk 0:01:57]}  Qc6 {[%clk 0:01:30]} 20. Nd5 {[%clk 0:01:55]}  Bc5 {[%clk 0:01:27]} 21. Be3 {[%clk 0:01:53]}  Rad8 {[%clk 0:01:23]} 22. Rfd1 {[%clk 0:01:52]}  Rfe8 {[%clk 0:00:57]} 23. Rac1 {[%clk 0:01:49]}  Rd7 {[%clk 0:00:34]} 24. Bxc5 {[%clk 0:01:41]}  bxc5 {[%clk 0:00:29]} 25. f4 {[%clk 0:01:38]}  Qe6 {[%clk 0:00:16]} 26. f5 {[%clk 0:01:26]}  Qh6 {[%clk 0:00:11]} 27. Rc3 {[%clk 0:01:18]}  Rf7 {[%clk 0:00:04]} 28. e6 {[%clk 0:01:12]}  Rff8 {[%clk 0:00:04]} 29. Nxc7 {[%clk 0:01:06]}  Re7 {[%clk 0:00:04]} 30. Nd5 {[%clk 0:01:02]}  Ree8 {[%clk 0:00:03]} 31. Rg3 {[%clk 0:01:00]}  Nb7 {[%clk 0:00:03]} 32. f6 {[%clk 0:00:57]}  Nd6 {[%clk 0:00:01]} 33. f7+ {[%clk 0:00:54]}  Kh8 {[%clk 0:00:01]} 34. fxe8=Q {[%clk 0:00:53]}  Rxe8 {[%clk 0:00:02]} 35. Qe5 {[%clk 0:00:52]}  Rxe6 {[%clk 0:00:02]} 36. Qf4 {[%clk 0:00:50]} 1-0


[Site "https://www.chess.com"]

[Event "Titled Tuesday Blitz January 03 Early 2023"]
[White "Starozhilov, Leonid"]
[Black "Mihajlov, Sebastian"]
[WhiteFideId "14106752"]
[BlackFideId "1512110"]
[WhiteElo "2313"]
[BlackElo "2373"]
[Result "1/2-1/2"]
[Round "06"]
[TimeControl "180+2"]
[Date "2023.01.03"]
[WhiteClock "0:00:04"]
[BlackClock "0:00:08"]

1. e4 {[%clk 0:03:00]}  e5 {[%clk 0:03:00]} 2. Nf3 {[%clk 0:03:00]}  Nc6 {[%clk 0:02:59]} 3. Bc4 {[%clk 0:02:59]}  Bc5 {[%clk 0:02:59]} 4. d3 {[%clk 0:02:58]}  Nf6 {[%clk 0:02:59]} 5. Nc3 {[%clk 0:02:54]}  h6 {[%clk 0:02:58]} 6. Be3 {[%clk 0:02:54]}  d6 {[%clk 0:02:56]} 7. h3 {[%clk 0:02:54]}  Bxe3 {[%clk 0:02:52]} 8. fxe3 {[%clk 0:02:54]}  Na5 {[%clk 0:02:53]} 9. Bb3 {[%clk 0:02:53]}  Nxb3 {[%clk 0:02:53]} 10. axb3 {[%clk 0:02:54]}  a6 {[%clk 0:02:51]} 11. O-O {[%clk 0:02:54]}  O-O {[%clk 0:02:51]} 12. Qe1 {[%clk 0:02:52]}  c6 {[%clk 0:02:44]} 13. Nh4 {[%clk 0:02:52]}  d5 {[%clk 0:02:41]} 14. Nf5 {[%clk 0:02:49]}  Bxf5 {[%clk 0:02:32]} 15. Rxf5 {[%clk 0:02:48]}  dxe4 {[%clk 0:02:27]} 16. dxe4 {[%clk 0:02:48]}  Qe7 {[%clk 0:02:24]} 17. Qg3 {[%clk 0:02:46]}  Rae8 {[%clk 0:02:24]} 18. Raf1 {[%clk 0:02:45]}  Nd7 {[%clk 0:02:22]} 19. Qg4 {[%clk 0:02:37]}  Nc5 {[%clk 0:02:12]} 20. Ne2 {[%clk 0:02:33]}  Kh7 {[%clk 0:01:22]} 21. Ng3 {[%clk 0:02:20]}  f6 {[%clk 0:01:07]} 22. Rh5 {[%clk 0:02:14]}  Qf7 {[%clk 0:00:44]} 23. Nf5 {[%clk 0:02:11]}  Qg6 {[%clk 0:00:44]} 24. Qh4 {[%clk 0:02:07]}  Nxe4 {[%clk 0:00:30]} 25. Rxh6+ {[%clk 0:01:31]}  gxh6 {[%clk 0:00:30]} 26. Qxe4 {[%clk 0:01:32]}  Rg8 {[%clk 0:00:26]} 27. Kh2 {[%clk 0:01:30]}  Rd8 {[%clk 0:00:25]} 28. Rf2 {[%clk 0:01:29]}  Kh8 {[%clk 0:00:21]} 29. Qh4 {[%clk 0:01:26]}  Qg5 {[%clk 0:00:19]} 30. Qe4 {[%clk 0:01:11]}  Qg6 {[%clk 0:00:18]} 31. g4 {[%clk 0:01:11]}  Rd1 {[%clk 0:00:16]} 32. Qf3 {[%clk 0:01:07]}  Rgd8 {[%clk 0:00:16]} 33. Ne7 {[%clk 0:01:02]}  Qg5 {[%clk 0:00:15]} 34. Qxf6+ {[%clk 0:00:46]}  Qxf6 {[%clk 0:00:15]} 35. Rxf6 {[%clk 0:00:47]}  Kg7 {[%clk 0:00:16]} 36. Rf3 {[%clk 0:00:40]}  R8d2+ {[%clk 0:00:14]} 37. Kg3 {[%clk 0:00:40]}  Rxc2 {[%clk 0:00:15]} 38. Nf5+ {[%clk 0:00:40]}  Kh7 {[%clk 0:00:14]} 39. Ne7 {[%clk 0:00:34]}  Rxb2 {[%clk 0:00:13]} 40. Rf7+ {[%clk 0:00:33]}  Kh8 {[%clk 0:00:14]} 41. Ng6+ {[%clk 0:00:33]}  Kg8 {[%clk 0:00:14]} 42. Rxb7 {[%clk 0:00:32]}  Rg1+ {[%clk 0:00:12]} 43. Kh4 {[%clk 0:00:31]}  Rh2 {[%clk 0:00:12]} 44. Nxe5 {[%clk 0:00:19]}  Rgh1 {[%clk 0:00:12]} 45. Kh5 {[%clk 0:00:17]}  Rxh3+ {[%clk 0:00:12]} 46. Kg6 {[%clk 0:00:17]}  Kf8 {[%clk 0:00:13]} 47. Nxc6 {[%clk 0:00:17]}  Rxe3 {[%clk 0:00:13]} 48. Rf7+ {[%clk 0:00:14]}  Ke8 {[%clk 0:00:13]} 49. Rf6 {[%clk 0:00:14]}  Kd7 {[%clk 0:00:10]} 50. Nb8+ {[%clk 0:00:10]}  Kc8 {[%clk 0:00:09]} 51. Nxa6 {[%clk 0:00:11]}  Rxb3 {[%clk 0:00:09]} 52. Rf8+ {[%clk 0:00:09]}  Kd7 {[%clk 0:00:08]} 53. Nc5+ {[%clk 0:00:09]}  Ke7 {[%clk 0:00:07]} 54. Rf7+ {[%clk 0:00:10]}  Ke8 {[%clk 0:00:06]} 55. Nxb3 {[%clk 0:00:11]}  Rh4 {[%clk 0:00:06]} 56. Rf4 {[%clk 0:00:08]}  h5 {[%clk 0:00:06]} 57. Re4+ {[%clk 0:00:06]}  Kf8 {[%clk 0:00:06]} 58. Rf4+ {[%clk 0:00:05]}  Kg8 {[%clk 0:00:07]} 59. Kf5 {[%clk 0:00:04]}  Rxg4 {[%clk 0:00:07]} 60. Rf3 {[%clk 0:00:04]}  Kh7 {[%clk 0:00:07]} 61. Nc5 {[%clk 0:00:04]}  Rg8 {[%clk 0:00:07]} 62. Ne6 {[%clk 0:00:04]}  Rg1 {[%clk 0:00:05]} 63. Re3 {[%clk 0:00:03]}  h4 {[%clk 0:00:05]} 64. Ng5+ {[%clk 0:00:03]}  Kg8 {[%clk 0:00:05]} 65. Re8+ {[%clk 0:00:03]}  Kg7 {[%clk 0:00:06]} 66. Re7+ {[%clk 0:00:03]}  Kf8 {[%clk 0:00:06]} 67. Rf7+ {[%clk 0:00:03]}  Ke8 {[%clk 0:00:06]} 68. Rf6 {[%clk 0:00:04]}  Rf1+ {[%clk 0:00:06]} 69. Kg6 {[%clk 0:00:03]}  Rxf6+ {[%clk 0:00:07]} 70. Kxf6 {[%clk 0:00:04]}  h3 {[%clk 0:00:08]} 71. Nxh3 {[%clk 0:00:04]} 1/2-1/2


[Site "https://www.chess.com"]

[Event "Titled Tuesday Blitz January 03 Early 2023"]
[White "Graca, Robert"]
[Black "Ardelean, George-Catalin"]
[WhiteFideId "644943"]
[BlackFideId "1207091"]
[WhiteElo "2270"]
[BlackElo "2470"]
[Result "0-1"]
[Round "06"]
[TimeControl "180+2"]
[Date "2023.01.03"]
[WhiteClock "0:00:26"]
[BlackClock "0:00:57"]

1. Nf3 {[%clk 0:02:59]}  d5 {[%clk 0:02:57]} 2. d4 {[%clk 0:02:56]}  e6 {[%clk 0:02:56]} 3. c4 {[%clk 0:02:57]}  a6 {[%clk 0:02:56]} 4. Bg5 {[%clk 0:02:56]}  Be7 {[%clk 0:02:56]} 5. Bxe7 {[%clk 0:02:55]}  Qxe7 {[%clk 0:02:56]} 6. e3 {[%clk 0:02:55]}  Nf6 {[%clk 0:02:54]} 7. Nbd2 {[%clk 0:02:54]}  O-O {[%clk 0:02:53]} 8. Bd3 {[%clk 0:02:53]}  b6 {[%clk 0:02:43]} 9. O-O {[%clk 0:02:43]}  Bb7 {[%clk 0:02:43]} 10. Rc1 {[%clk 0:02:42]}  c5 {[%clk 0:02:37]} 11. cxd5 {[%clk 0:02:35]}  exd5 {[%clk 0:02:32]} 12. Ne5 {[%clk 0:02:31]}  c4 {[%clk 0:02:27]} 13. Bb1 {[%clk 0:02:27]}  Nbd7 {[%clk 0:02:26]} 14. f4 {[%clk 0:02:27]}  b5 {[%clk 0:02:26]} 15. Rf3 {[%clk 0:02:24]}  Ne4 {[%clk 0:02:24]} 16. Rh3 {[%clk 0:02:11]}  f5 {[%clk 0:02:08]} 17. Nxd7 {[%clk 0:01:52]}  Qxd7 {[%clk 0:02:09]} 18. Nf3 {[%clk 0:01:52]}  Rf6 {[%clk 0:02:02]} 19. Ne5 {[%clk 0:01:50]}  Qe7 {[%clk 0:01:50]} 20. Bxe4 {[%clk 0:01:20]}  dxe4 {[%clk 0:01:42]} 21. b3 {[%clk 0:01:10]}  Bd5 {[%clk 0:01:41]} 22. bxc4 {[%clk 0:01:04]}  bxc4 {[%clk 0:01:42]} 23. Nxc4 {[%clk 0:00:55]}  Rc6 {[%clk 0:01:32]} 24. Ne5 {[%clk 0:00:47]}  Rxc1 {[%clk 0:01:17]} 25. Qxc1 {[%clk 0:00:48]}  Qb7 {[%clk 0:01:08]} 26. Rh5 {[%clk 0:00:28]}  Rc8 {[%clk 0:01:03]} 27. Qe1 {[%clk 0:00:26]}  Qb2 {[%clk 0:00:57]} 0-1


[Site "https://www.chess.com"]

[Event "Titled Tuesday Blitz January 03 Early 2023"]
[White "Fiorito, Francisco"]
[Black "Fernandez Guillen, Ernesto J."]
[WhiteFideId "180165"]
[BlackFideId "3512428"]
[WhiteElo "2305"]
[BlackElo "2477"]
[Result "1-0"]
[Round "06"]
[TimeControl "180+2"]
[Date "2023.01.03"]
[WhiteClock "0:00:56"]
[BlackClock "0:00:04"]

1. Nf3 {[%clk 0:03:00]}  Nf6 {[%clk 0:02:48]} 2. g3 {[%clk 0:02:58]}  g6 {[%clk 0:02:49]} 3. Bg2 {[%clk 0:02:56]}  Bg7 {[%clk 0:02:47]} 4. O-O {[%clk 0:02:56]}  O-O {[%clk 0:02:47]} 5. d4 {[%clk 0:02:56]}  d5 {[%clk 0:02:48]} 6. c4 {[%clk 0:02:48]}  c6 {[%clk 0:02:49]} 7. cxd5 {[%clk 0:02:47]}  Nxd5 {[%clk 0:02:47]} 8. e4 {[%clk 0:02:45]}  Nb6 {[%clk 0:02:36]} 9. Nc3 {[%clk 0:02:45]}  N8d7 {[%clk 0:02:27]} 10. Qe2 {[%clk 0:02:41]}  e5 {[%clk 0:01:56]} 11. Bg5 {[%clk 0:02:27]}  Qe8 {[%clk 0:01:56]} 12. d5 {[%clk 0:02:23]}  h6 {[%clk 0:01:55]} 13. Be3 {[%clk 0:02:17]}  f5 {[%clk 0:01:55]} 14. exf5 {[%clk 0:02:16]}  gxf5 {[%clk 0:01:56]} 15. dxc6 {[%clk 0:02:16]}  bxc6 {[%clk 0:01:56]} 16. Nh4 {[%clk 0:02:15]}  e4 {[%clk 0:01:53]} 17. Rad1 {[%clk 0:02:14]}  Qe6 {[%clk 0:01:36]} 18. Bh3 {[%clk 0:02:05]}  a5 {[%clk 0:01:18]} 19. Qh5 {[%clk 0:02:02]}  Nc4 {[%clk 0:01:07]} 20. Nxf5 {[%clk 0:01:52]}  Nxe3 {[%clk 0:00:33]} 21. Nxe3 {[%clk 0:01:43]}  Qe5 {[%clk 0:00:30]} 22. Qxe5 {[%clk 0:01:35]}  Nxe5 {[%clk 0:00:31]} 23. Bxc8 {[%clk 0:01:36]}  Raxc8 {[%clk 0:00:30]} 24. Nxe4 {[%clk 0:01:36]}  Nf3+ {[%clk 0:00:31]} 25. Kg2 {[%clk 0:01:37]}  Bxb2 {[%clk 0:00:31]} 26. Nd6 {[%clk 0:01:36]}  Rc7 {[%clk 0:00:30]} 27. Ndf5 {[%clk 0:01:36]}  Ng5 {[%clk 0:00:25]} 28. Nxh6+ {[%clk 0:01:36]}  Kh7 {[%clk 0:00:26]} 29. Nhg4 {[%clk 0:01:33]}  c5 {[%clk 0:00:26]} 30. h4 {[%clk 0:01:33]}  Ne4 {[%clk 0:00:25]} 31. Nd5 {[%clk 0:01:31]}  Rcf7 {[%clk 0:00:23]} 32. f3 {[%clk 0:01:30]}  Nd6 {[%clk 0:00:17]} 33. Nde3 {[%clk 0:01:23]}  Bd4 {[%clk 0:00:17]} 34. Nc2 {[%clk 0:01:22]}  Nf5 {[%clk 0:00:16]} 35. Nxd4 {[%clk 0:01:22]}  cxd4 {[%clk 0:00:15]} 36. Rd2 {[%clk 0:01:20]}  Rc7 {[%clk 0:00:13]} 37. Re1 {[%clk 0:01:18]}  Rc3 {[%clk 0:00:09]} 38. Re5 {[%clk 0:01:04]}  a4 {[%clk 0:00:09]} 39. Ra5 {[%clk 0:01:00]}  a3 {[%clk 0:00:10]} 40. Ra7+ {[%clk 0:00:58]}  Kg8 {[%clk 0:00:04]} 41. h5 {[%clk 0:00:56]} 1-0


[Site "https://www.chess.com"]

[Event "Titled Tuesday Blitz January 03 Early 2023"]
[White "Bodnaruk, Anastasia"]
[Black "Rakhmatullaev, Almas"]
[WhiteFideId "4181751"]
[BlackFideId "14205793"]
[WhiteElo "2350"]
[BlackElo "2275"]
[Result "1-0"]
[Round "06"]
[TimeControl "180+2"]
[Date "2023.01.03"]
[WhiteClock "0:00:10"]
[BlackClock "0:00:04"]

1. e4 {[%clk 0:03:00]}  e5 {[%clk 0:02:59]} 2. Nf3 {[%clk 0:03:00]}  Nf6 {[%clk 0:02:59]} 3. Nxe5 {[%clk 0:02:56]}  Nxe4 {[%clk 0:02:59]} 4. Qe2 {[%clk 0:02:53]}  Qe7 {[%clk 0:02:59]} 5. Qxe4 {[%clk 0:02:53]}  d6 {[%clk 0:02:59]} 6. d4 {[%clk 0:02:53]}  dxe5 {[%clk 0:02:59]} 7. dxe5 {[%clk 0:02:53]}  Nc6 {[%clk 0:02:59]} 8. Bb5 {[%clk 0:02:53]}  Bd7 {[%clk 0:02:59]} 9. O-O {[%clk 0:02:48]}  O-O-O {[%clk 0:02:58]} 10. Re1 {[%clk 0:02:40]}  f5 {[%clk 0:02:47]} 11. exf6 {[%clk 0:02:23]}  Qxe4 {[%clk 0:02:47]} 12. Rxe4 {[%clk 0:02:22]}  Bf5 {[%clk 0:02:47]} 13. Re1 {[%clk 0:02:13]}  Nd4 {[%clk 0:02:43]} 14. fxg7 {[%clk 0:01:53]}  Bxg7 {[%clk 0:02:38]} 15. Na3 {[%clk 0:01:51]}  Bf8 {[%clk 0:02:12]} 16. c3 {[%clk 0:01:12]}  Ne6 {[%clk 0:01:22]} 17. Bc4 {[%clk 0:00:54]}  a6 {[%clk 0:00:55]} 18. g4 {[%clk 0:00:45]}  Rg8 {[%clk 0:00:47]} 19. Kf1 {[%clk 0:00:34]}  Bxg4 {[%clk 0:00:06]} 20. Bxe6+ {[%clk 0:00:23]}  Bxe6 {[%clk 0:00:06]} 21. Rxe6 {[%clk 0:00:24]}  Bd6 {[%clk 0:00:05]} 22. Be3 {[%clk 0:00:18]}  Bxh2 {[%clk 0:00:05]} 23. Ke2 {[%clk 0:00:18]}  Bd6 {[%clk 0:00:04]} 24. Nc4 {[%clk 0:00:18]}  Bf8 {[%clk 0:00:05]} 25. Rh1 {[%clk 0:00:16]}  Rg4 {[%clk 0:00:05]} 26. Ne5 {[%clk 0:00:15]}  Re4 {[%clk 0:00:06]} 27. Rxh7 {[%clk 0:00:12]}  Bd6 {[%clk 0:00:04]} 28. Rh5 {[%clk 0:00:12]}  Rf8 {[%clk 0:00:03]} 29. Kd3 {[%clk 0:00:11]}  Ra4 {[%clk 0:00:03]} 30. Nc4 {[%clk 0:00:10]}  b5 {[%clk 0:00:02]} 31. Nxd6+ {[%clk 0:00:09]}  cxd6 {[%clk 0:00:03]} 32. Rxd6 {[%clk 0:00:10]}  Ra3 {[%clk 0:00:04]} 33. bxa3 {[%clk 0:00:10]} 1-0


[Site "https://www.chess.com"]